fUSD/lending_fUSD_20250211
["ID","MTS","AMOUNT","RATE_DAILY","PERIOD"]
[352765989,1739298661783,-500.0,0.00016986,2]
[352765990,1739298661792,-564.72,0.00016986,2]
[352765991,1739298661805,-500.0,0.00016986,2]
[352765992,1739298661815,-692.89,0.00016986,2]
[352765993,1739298661825,-500.0,0.00016986,2]
[352765994,1739298661835,-500.0,0.00016986,2]
[352765995,1739298661845,-325.59337028,0.00016986,2]
[352765996,1739298661855,-557.98,0.00016986,2]
[352765997,1739298661865,-710.61,0.00016986,2]
[352765998,1739298661881,-500.0,0.00016986,2]
[352765999,1739298661891,-761.56,0.00016986,2]
[352766000,1739298661901,-500.0,0.00016986,2]
[352766001,1739298661912,-500.0,0.00016986,2]
[352766002,1739298661922,-613.13,0.00016986,2]
[352766003,1739298661933,-500.0,0.00016986,2]
[352766004,1739298661944,-500.0,0.00016986,2]
[352766005,1739298661954,-505.36,0.00016986,2]
[352766006,1739298661965,-595.39,0.00016986,2]
[352766007,1739298661975,-500.0,0.00016986,2]
[352766008,1739298661984,-500.0,0.00016986,2]
[352766009,1739298661994,-339.07,0.00016986,2]
[352766010,1739298662004,-500.0,0.00016986,2]
[352766011,1739298662013,-500.0,0.00016986,2]
[352766012,1739298662022,-500.0,0.00016986,2]
[352766013,1739298662032,-1359.95,0.00016986,2]
[352766014,1739298662042,-500.0,0.00016986,2]
[352766015,1739298662052,-902.85,0.00016986,2]
[352766016,1739298662061,-500.0,0.00016986,2]
[352766017,1739298662071,-650.0,0.00017,2]
[352766018,1739298662080,-1000.0,0.00017009,2]
[352766019,1739298662090,-1000.0,0.00017021,2]
[352766020,1739298662099,-3760.0186424,0.00017027,2]
[352766021,1739298662109,-20960.46174376,0.00017039,2]
[352766022,1739298662121,-316.43,0.00017065,2]
[352766023,1739298662132,-574.23,0.000171,7]
[352766024,1739298662142,-1000.0,0.00017122,2]
[352766025,1739298662151,-1000.0,0.00017122,2]
[352766026,1739298662161,-1000.0,0.00017122,2]
[352766027,1739298662171,-634.55645641,0.00017122,2]
[352766028,1739298662181,-500.0,0.00017122,2]
[352766029,1739298662191,-999.0,0.00017122,2]
[352766030,1739298662201,-500.0,0.00017122,2]
[352766031,1739298662211,-500.0,0.00017122,2]
[352766032,1739298662220,-469.902416,0.00017123,2]
[352766033,1739298662231,-549.183022,0.00017123,2]
[352766034,1739298662241,-500.0,0.00017123,2]
[352766035,1739298662251,-500.0,0.00017123,2]
[352766036,1739298662261,-177.4,0.00017123,2]
[352766037,1739298662271,-500.0,0.00017123,2]
[352766038,1739298662281,-500.0,0.00017123,2]
[352766039,1739298662291,-500.0,0.00017123,2]
[352766040,1739298662302,-500.0,0.00017123,2]
[352766041,1739298662312,-500.0,0.00017123,2]
[352766042,1739298662322,-500.0,0.00017123,2]
[352766043,1739298662332,-500.0,0.00017123,2]
[352766044,1739298662342,-722.82,0.00017123,2]
[352766045,1739298662351,-150.94280404,0.00017123,2]
[352766046,1739298662361,-788.18,0.00017123,2]
[352766047,1739298662373,-500.0,0.00017123,2]
[352766048,1739298662383,-500.0,0.00017123,2]
[352766049,1739298662394,-500.0,0.00017123,2]
[352766050,1739298662404,-779.81,0.00017123,2]
[352766051,1739298662413,-500.0,0.00017123,2]
[352766052,1739298662423,-500.0,0.00017123,2]
[352766053,1739298662433,-500.0,0.00017123,2]
[352766054,1739298662442,-500.0,0.00017123,2]
[352766055,1739298662451,-500.0,0.00017123,2]
[352766056,1739298662461,-500.0,0.00017123,2]
[352766057,1739298662471,-500.0,0.00017123,2]
[352766058,1739298662481,-500.0,0.00017123,2]
[352766059,1739298662491,-500.0,0.00017123,2]
[352766060,1739298662501,-500.0,0.00017123,2]
[352766061,1739298662510,-500.0,0.00017123,2]
[352766062,1739298662520,-500.0,0.00017123,2]
[352766063,1739298662530,-500.0,0.00017123,2]
[352766064,1739298662541,-553.98,0.00017123,2]
[352766065,1739298662551,-500.0,0.00017123,2]
[352766066,1739298662561,-2296.07,0.00017123,2]
[352766067,1739298662571,-500.0,0.00017123,2]
[352766068,1739298662581,-172.35086225,0.00017123,2]
[352766069,1739298662591,-500.0,0.00017123,2]
[352766070,1739298662600,-500.0,0.00017123,2]
[352766071,1739298662610,-491.014014,0.00017123,2]
[352766072,1739298662621,-491.014014,0.00017123,2]
[352766073,1739298662631,-500.0,0.00017123,2]
[352766074,1739298662641,-619.89,0.00017123,2]
[352766075,1739298662651,-500.0,0.00017123,2]
[352766076,1739298662661,-500.0,0.00017123,2]
[352766077,1739298662671,-500.0,0.00017123,2]
[352766078,1739298662680,-500.0,0.00017123,2]
[352766079,1739298662690,-2433.72,0.00017123,2]
[352766080,1739298662700,-500.0,0.00017123,2]
[352766081,1739298662710,-500.0,0.00017123,2]
[352766082,1739298662720,-500.0,0.00017123,2]
[352766083,1739298662729,-500.0,0.00017123,2]
[352766084,1739298662739,-500.0,0.00017123,2]
[352766085,1739298662749,-500.0,0.00017123,2]
[352766086,1739298662759,-466.31971745,0.00017123,2]
[352766087,1739298662769,-500.0,0.00017123,2]
[352766088,1739298662778,-500.0,0.00017123,2]
[352766089,1739298662787,-500.0,0.00017123,2]
[352766090,1739298662796,-500.0,0.00017123,2]
[352766091,1739298662806,-500.0,0.00017123,2]
[352766092,1739298662815,-500.0,0.00017123,2]
[352766093,1739298662825,-500.0,0.00017123,2]
[352766094,1739298662835,-500.0,0.00017123,2]
[352766095,1739298662844,-500.0,0.00017123,2]
[352766096,1739298662854,-500.0,0.00017123,2]
[352766097,1739298662864,-500.0,0.00017123,2]
[352766098,1739298662878,-500.0,0.00017123,2]
[352766099,1739298662888,-500.0,0.00017123,2]
[352766100,1739298662898,-500.0,0.00017123,2]
[352766101,1739298662908,-544.88,0.00017123,2]
[352766102,1739298662918,-500.0,0.00017123,2]
[352766103,1739298662929,-500.0,0.00017123,2]
[352766104,1739298662938,-500.0,0.00017123,2]
[352766105,1739298662948,-500.0,0.00017123,2]
[352766106,1739298662959,-500.0,0.00017123,2]
[352766107,1739298662969,-587.21,0.00017123,2]
[352766108,1739298662978,-500.0,0.00017123,2]
[352766109,1739298662988,-500.0,0.00017123,2]
[352766110,1739298662997,-500.0,0.00017123,2]
[352766111,1739298663007,-500.0,0.00017123,2]
[352766112,1739298663017,-776.68,0.00017123,2]
[352766113,1739298663027,-500.0,0.00017123,2]
[352766114,1739298663037,-151.0,0.00017123,2]
[352766115,1739298663047,-500.0,0.00017123,2]
[352766116,1739298663058,-500.0,0.00017123,2]
[352766117,1739298663068,-500.0,0.00017123,2]
[352766118,1739298663078,-500.0,0.00017123,2]
[352766119,1739298663088,-500.0,0.00017123,2]
[352766120,1739298663099,-500.0,0.00017123,2]
[352766121,1739298663109,-477.01821297,0.00017123,2]
[352766122,1739298663120,-783.88,0.00017123,2]
[352766123,1739298663131,-500.0,0.00017123,2]
[352766124,1739298663141,-500.0,0.00017123,2]
[352766125,1739298663150,-500.0,0.00017123,2]
[352766126,1739298663160,-453.58220699,0.00017123,2]
[352766127,1739298663170,-1508.97,0.00017123,2]
[352766128,1739298663180,-500.0,0.00017123,2]
[352766129,1739298663190,-526.89560708,0.00017123,2]
[352766130,1739298663200,-500.0,0.00017123,2]
[352766131,1739298663210,-688.16,0.00017123,2]
[352766132,1739298663220,-646.53,0.00017123,2]
[352766133,1739298663230,-500.0,0.00017123,2]
[352766134,1739298663241,-500.0,0.00017123,2]
[352766135,1739298663251,-500.0,0.00017123,2]
[352766136,1739298663260,-928.56,0.00017123,2]
[352766137,1739298663271,-515.55,0.00017123,2]
[352766138,1739298663281,-607.49,0.00017123,2]
[352766139,1739298663291,-1282.36,0.00017123,2]
[352766140,1739298663300,-500.0,0.00017123,2]
[352766141,1739298663310,-280.46720017,0.00017123,2]
[352766142,1739298663320,-500.0,0.00017123,2]
[352766143,1739298663331,-1647.83,0.00017123,2]
[352766144,1739298663341,-500.0,0.00017123,2]
[352766145,1739298663352,-500.0,0.00017123,2]
[352766146,1739298663362,-500.0,0.00017123,2]
[352766147,1739298663373,-787.18,0.00017123,2]
[352766148,1739298663383,-500.0,0.00017123,2]
[352766149,1739298663393,-500.0,0.00017123,2]
[352766150,1739298663403,-503.84,0.00017123,2]
[352766151,1739298663412,-500.0,0.00017123,2]
[352766152,1739298663422,-652.076007,0.00017123,2]
[352766153,1739298663434,-551.67,0.00017123,2]
[352766154,1739298663444,-564.67,0.00017123,2]
[352766155,1739298663454,-802.86,0.00017123,2]
[352766156,1739298663464,-652.076007,0.00017123,2]
[352766157,1739298663475,-500.0,0.00017123,2]
[352766158,1739298663485,-809.1,0.00017123,2]
[352766159,1739298663495,-589.09,0.00017123,2]
[352766160,1739298663506,-500.0,0.00017123,2]
[352766161,1739298663516,-621.49,0.00017123,2]
[352766162,1739298663704,-500.0,0.00017123,2]
[352766163,1739298663716,-500.0,0.00017123,2]
[352766164,1739298663726,-500.0,0.00017123,2]
[352766165,1739298663736,-669.22,0.00017123,2]
[352766166,1739298663746,-500.0,0.00017123,2]
[352766167,1739298663756,-500.0,0.00017123,2]
[352766168,1739298663766,-500.0,0.00017123,2]
[352766169,1739298663776,-750.57,0.00017123,2]
[352766170,1739298663786,-828.95,0.00017123,2]
[352766171,1739298663797,-500.0,0.00017123,2]
[352766172,1739298663807,-773.6,0.00017123,2]
[352766173,1739298663817,-522.31,0.00017123,2]
[352766174,1739298663828,-500.0,0.00017123,2]
[352766175,1739298663838,-1142.31,0.00017123,2]
[352766176,1739298663848,-500.0,0.00017123,2]
[352766177,1739298663858,-206.620372,0.00017123,2]
[352766178,1739298663868,-500.0,0.00017123,2]
[352766179,1739298663886,-206.620372,0.00017123,2]
[352766180,1739298663896,-511.15,0.00017123,2]
[352766181,1739298663907,-735.1,0.00017123,2]
[352766182,1739298663919,-500.0,0.00017123,2]
[352766183,1739298663930,-500.0,0.00017123,2]
[352766184,1739298663940,-500.0,0.00017123,2]
[352766185,1739298663950,-700.83,0.00017123,2]
[352766186,1739298663960,-574.37,0.00017123,2]
[352766187,1739298663970,-500.0,0.00017123,2]
[352766188,1739298663980,-500.0,0.00017123,2]
[352766189,1739298663991,-573.07,0.00017123,2]
[352766190,1739298664002,-1091.51,0.00017123,2]
[352766191,1739298664013,-1000.0,0.00017123,2]
[352766192,1739298664023,-500.0,0.00017123,2]
[352766193,1739298664033,-609.52,0.00017123,2]
[352766194,1739298664044,-500.0,0.00017123,2]
[352766195,1739298664055,-542.89,0.00017123,2]
[352766196,1739298664065,-500.0,0.00017123,2]
[352766197,1739298664076,-867.18,0.00017123,2]
[352766198,1739298664086,-515.33,0.00017123,2]
[352766199,1739298664096,-571.89,0.00017123,2]
[352766200,1739298664107,-500.0,0.00017123,2]
[352766201,1739298664117,-500.0,0.00017123,2]
[352766202,1739298664127,-695.7,0.00017123,2]
[352766203,1739298664137,-833.39,0.00017123,2]
[352766204,1739298664148,-549.21,0.00017123,2]
[352766205,1739298664158,-500.0,0.00017123,2]
[352766206,1739298664168,-1540.74,0.00017123,2]
[352766207,1739298664179,-500.0,0.00017123,2]
[352766208,1739298664188,-528.06,0.00017123,2]
[352766209,1739298664198,-151.0,0.00017123,2]
[352766210,1739298664208,-691.14,0.00017123,2]
[352766211,1739298664218,-500.0,0.00017123,2]
[352766212,1739298664228,-564.72,0.00017123,2]
[352766213,1739298664238,-500.0,0.00017123,2]
[352766214,1739298664248,-692.89,0.00017123,2]
[352766215,1739298664257,-500.0,0.00017123,2]
[352766216,1739298664268,-500.0,0.00017123,2]
[352766217,1739298664278,-557.98,0.00017123,2]
[352766218,1739298664288,-710.61,0.00017123,2]
[352766219,1739298664298,-500.0,0.00017123,2]
[352766220,1739298664309,-761.56,0.00017123,2]
[352766221,1739298664320,-375.39418618,0.00017123,2]
[352766222,1739298664331,-500.0,0.00017123,2]
[352766223,1739298664342,-613.13,0.00017123,2]
[352766224,1739298664351,-500.0,0.00017123,2]
[352766225,1739298664362,-500.0,0.00017123,2]
[352766226,1739298664375,-505.36,0.00017123,2]
[352766227,1739298664387,-595.39,0.00017123,2]
[352766228,1739298664398,-500.0,0.00017123,2]
[352766229,1739298664408,-500.0,0.00017123,2]
[352766230,1739298664419,-500.0,0.00017123,2]
[352766231,1739298664429,-500.0,0.00017123,2]
[352766232,1739298664440,-500.0,0.00017123,2]
[352766233,1739298664450,-1359.95,0.00017123,2]
[352766234,1739298664460,-500.0,0.00017123,2]
[352766235,1739298664471,-902.85,0.00017123,2]
[352766236,1739298664481,-500.0,0.00017123,2]
[352766237,1739298664491,-985.27,0.00017128,2]
[352766238,1739298664502,-568.49832981,0.00017192,2]
[352766239,1739298664511,-500.0,0.00017196,2]
[352766240,1739298664521,-500.0,0.00017196,2]
[352766241,1739298664530,-700.0,0.00017196,2]
[352766242,1739298664540,-500.0,0.00017257,2]
[352766243,1739298664550,-500.0,0.00017257,2]
[352766244,1739298664561,-500.0,0.00017257,2]
[352766245,1739298664572,-171578.02878113,0.00017258,2]
[352766246,1739298664582,-491.014014,0.00017258,2]
[352766247,1739298664592,-491.014014,0.00017258,2]
[352766248,1739298664602,-151.0,0.00017258,2]
[352766249,1739298664613,-652.076007,0.00017258,2]
[352766250,1739298664626,-652.076007,0.00017258,2]
[352766251,1739298664635,-206.620372,0.00017258,2]
[352766252,1739298664646,-206.620372,0.00017258,2]
[352766253,1739298664657,-151.0,0.00017258,2]
[352766254,1739298664667,-500.0,0.00017259,2]
[352766255,1739298664677,-469.902416,0.0001726,2]
[352766256,1739298664687,-549.183022,0.0001726,2]
[352766257,1739298664697,-156.826788,0.0001726,2]
[352766258,1739298664706,-500.0,0.0001726,2]
[352766259,1739298664717,-500.0,0.0001726,2]
[352766260,1739298664727,-500.0,0.0001726,2]
[352766261,1739298664736,-500.0,0.0001726,2]
[352766262,1739298664746,-500.0,0.0001726,2]
[352766263,1739298664756,-500.0,0.0001726,2]
[352766264,1739298664765,-500.0,0.0001726,2]
[352766265,1739298664775,-500.0,0.0001726,2]
[352766266,1739298664784,-500.0,0.0001726,2]
[352766267,1739298664793,-722.82,0.0001726,2]
[352766268,1739298664803,-788.18,0.0001726,2]
[352766269,1739298664813,-500.0,0.0001726,2]
[352766270,1739298664823,-500.0,0.0001726,2]
[352766271,1739298664833,-500.0,0.0001726,2]
[352766272,1739298664843,-779.81,0.0001726,2]
[352766273,1739298664853,-500.0,0.0001726,2]
[352766274,1739298664863,-500.0,0.0001726,2]
[352766275,1739298664878,-556.80554714,0.0001726,2]
[352766276,1739298664887,-500.0,0.0001726,2]
[352766277,1739298664897,-500.0,0.0001726,2]
[352766278,1739298664906,-500.0,0.0001726,2]
[352766279,1739298664917,-500.0,0.0001726,2]
[352766280,1739298664927,-500.0,0.0001726,2]
[352766281,1739298664937,-610.52530838,0.0001726,2]
[352766282,1739298664947,-500.0,0.0001726,2]
[352766283,1739298664958,-500.0,0.0001726,2]
[352766284,1739298664968,-500.0,0.0001726,2]
[352766285,1739298664977,-500.0,0.0001726,2]
[352766286,1739298664987,-553.98,0.0001726,2]
[352766287,1739298664997,-500.0,0.0001726,2]
[352766288,1739298665007,-2296.07,0.0001726,2]
[352766289,1739298665018,-500.0,0.0001726,2]
[352766290,1739298665028,-500.0,0.0001726,2]
[352766291,1739298665038,-500.0,0.0001726,2]
[352766292,1739298665048,-500.0,0.0001726,2]
[352766293,1739298665058,-619.89,0.0001726,2]
[352766294,1739298665068,-500.0,0.0001726,2]
[352766295,1739298665078,-500.0,0.0001726,2]
[352766296,1739298665088,-500.0,0.0001726,2]
[352766297,1739298665099,-500.0,0.0001726,2]
[352766298,1739298665109,-2433.72,0.0001726,2]
[352766299,1739298665119,-500.0,0.0001726,2]
[352766300,1739298665132,-500.0,0.0001726,2]
[352766301,1739298665143,-500.0,0.0001726,2]
[352766302,1739298665154,-500.0,0.0001726,2]
[352766303,1739298665165,-500.0,0.0001726,2]
[352766304,1739298665175,-500.0,0.0001726,2]
[352766305,1739298665185,-500.0,0.0001726,2]
[352766306,1739298665195,-500.0,0.0001726,2]
[352766307,1739298665205,-500.0,0.0001726,2]
[352766308,1739298665216,-500.0,0.0001726,2]
[352766309,1739298665225,-500.0,0.0001726,2]
[352766310,1739298665235,-500.0,0.0001726,2]
[352766311,1739298665245,-500.0,0.0001726,2]
[352766312,1739298665254,-332.51970693,0.0001726,2]
[352766313,1739298665265,-500.0,0.0001726,2]
[352766314,1739298665275,-500.0,0.0001726,2]
[352766315,1739298665285,-500.0,0.0001726,2]
[352766316,1739298665296,-500.0,0.0001726,2]
[352766317,1739298665306,-500.0,0.0001726,2]
[352766318,1739298665316,-500.0,0.0001726,2]
[352766319,1739298665326,-544.88,0.0001726,2]
[352766320,1739298665336,-500.0,0.0001726,2]
[352766321,1739298665347,-500.0,0.0001726,2]
[352766322,1739298665358,-500.0,0.0001726,2]
[352766323,1739298665368,-500.0,0.0001726,2]
[352766324,1739298665382,-500.0,0.0001726,2]
[352766325,1739298665392,-587.21,0.0001726,2]
[352766326,1739298665402,-500.0,0.0001726,2]
[352766327,1739298665412,-500.0,0.0001726,2]
[352766328,1739298665422,-500.0,0.0001726,2]
[352766329,1739298665432,-500.0,0.0001726,2]
[352766330,1739298665442,-776.68,0.0001726,2]
[352766331,1739298665453,-500.0,0.0001726,2]
[352766332,1739298665463,-500.0,0.0001726,2]
[352766333,1739298665474,-500.0,0.0001726,2]
[352766334,1739298665484,-500.0,0.0001726,2]
[352766335,1739298665494,-500.0,0.0001726,2]
[352766336,1739298665504,-500.0,0.0001726,2]
[352766337,1739298665514,-547.42466232,0.0001726,2]
[352766338,1739298665524,-783.88,0.0001726,2]
[352766339,1739298665534,-500.0,0.0001726,2]
[352766340,1739298665544,-500.0,0.0001726,2]
[352766341,1739298665554,-500.0,0.0001726,2]
[352766342,1739298665564,-1508.97,0.0001726,2]
[352766343,1739298665575,-500.0,0.0001726,2]
[352766344,1739298665585,-500.0,0.0001726,2]
[352766345,1739298665595,-688.16,0.0001726,2]
[352766346,1739298665606,-646.53,0.0001726,2]
[352766347,1739298665615,-500.0,0.0001726,2]
[352766348,1739298665628,-500.0,0.0001726,2]
[352766349,1739298665638,-500.0,0.0001726,2]
[352766350,1739298665647,-928.56,0.0001726,2]
[352766351,1739298665657,-515.55,0.0001726,2]
[352766352,1739298665668,-607.49,0.0001726,2]
[352766353,1739298665678,-1282.36,0.0001726,2]
[352766354,1739298665687,-500.0,0.0001726,2]
[352766355,1739298665697,-500.0,0.0001726,2]
[352766356,1739298665707,-1647.83,0.0001726,2]
[352766357,1739298665717,-500.0,0.0001726,2]
[352766358,1739298665728,-500.0,0.0001726,2]
[352766359,1739298665738,-500.0,0.0001726,2]
[352766360,1739298665748,-787.18,0.0001726,2]
[352766361,1739298665759,-500.0,0.0001726,2]
[352766362,1739298665769,-429.61771932,0.0001726,2]
[352766363,1739298665779,-503.84,0.0001726,2]
[352766364,1739298665789,-500.0,0.0001726,2]
[352766365,1739298665800,-564.67,0.0001726,2]
[352766366,1739298665810,-802.86,0.0001726,2]
[352766367,1739298665819,-500.0,0.0001726,2]
[352766368,1739298665829,-809.1,0.0001726,2]
[352766369,1739298665839,-589.09,0.0001726,2]
[352766370,1739298665850,-500.0,0.0001726,2]
[352766371,1739298665860,-621.49,0.0001726,2]
[352766372,1739298665873,-500.0,0.0001726,2]
[352766373,1739298665883,-500.0,0.0001726,2]
[352766374,1739298665893,-500.0,0.0001726,2]
[352766375,1739298665902,-669.22,0.0001726,2]
[352766376,1739298665913,-500.0,0.0001726,2]
[352766377,1739298665923,-500.0,0.0001726,2]
[352766378,1739298665933,-500.0,0.0001726,2]
[352766379,1739298665942,-750.57,0.0001726,2]
[352766380,1739298665953,-828.95,0.0001726,2]
[352766381,1739298665963,-500.0,0.0001726,2]
[352766382,1739298665973,-773.6,0.0001726,2]
[352766383,1739298665983,-522.31,0.0001726,2]
[352766384,1739298665993,-500.0,0.0001726,2]
[352766385,1739298666003,-1142.31,0.0001726,2]
[352766386,1739298666012,-500.0,0.0001726,2]
[352766387,1739298666022,-500.0,0.0001726,2]
[352766388,1739298666033,-511.15,0.0001726,2]
[352766389,1739298666043,-735.1,0.0001726,2]
[352766390,1739298666053,-500.0,0.0001726,2]
[352766391,1739298666063,-500.0,0.0001726,2]
[352766392,1739298666073,-500.0,0.0001726,2]
[352766393,1739298666083,-700.83,0.0001726,2]
[352766394,1739298666092,-574.37,0.0001726,2]
[352766395,1739298666102,-500.0,0.0001726,2]
[352766396,1739298666112,-500.0,0.0001726,2]
[352766397,1739298666124,-573.07,0.0001726,2]
[352766398,1739298666134,-1000.0,0.0001726,2]
[352766399,1739298666144,-1091.51,0.0001726,2]
[352766400,1739298666153,-500.0,0.0001726,2]
[352766401,1739298666163,-609.52,0.0001726,2]
[352766402,1739298666173,-500.0,0.0001726,2]
[352766403,1739298666184,-542.89,0.0001726,2]
[352766404,1739298666194,-500.0,0.0001726,2]
[352766405,1739298666204,-867.18,0.0001726,2]
[352766406,1739298666214,-515.33,0.0001726,2]
[352766407,1739298666224,-571.89,0.0001726,2]
[352766408,1739298666234,-500.0,0.0001726,2]
[352766409,1739298666244,-500.0,0.0001726,2]
[352766410,1739298666254,-695.7,0.0001726,2]
[352766411,1739298666307,-833.39,0.0001726,2]
[352766412,1739298666316,-549.21,0.0001726,2]
[352766413,1739298666326,-500.0,0.0001726,2]
[352766414,1739298666336,-1540.74,0.0001726,2]
[352766415,1739298666345,-500.0,0.0001726,2]
[352766416,1739298666354,-528.06,0.0001726,2]
[352766417,1739298666364,-691.14,0.0001726,2]
[352766418,1739298666376,-500.0,0.0001726,2]
[352766419,1739298666385,-564.72,0.0001726,2]
[352766420,1739298666394,-500.0,0.0001726,2]
[352766421,1739298666405,-692.89,0.0001726,2]
[352766422,1739298666415,-500.0,0.0001726,2]
[352766423,1739298666426,-500.0,0.0001726,2]
[352766424,1739298666436,-557.98,0.0001726,2]
[352766425,1739298666446,-710.61,0.0001726,2]
[352766426,1739298666456,-500.0,0.0001726,2]
[352766427,1739298666467,-761.56,0.0001726,2]
[352766428,1739298666476,-500.0,0.0001726,2]
[352766429,1739298666486,-613.13,0.0001726,2]
[352766430,1739298666497,-500.0,0.0001726,2]
[352766431,1739298666506,-500.0,0.0001726,2]
[352766432,1739298666517,-505.36,0.0001726,2]
[352766433,1739298666527,-595.39,0.0001726,2]
[352766434,1739298666537,-500.0,0.0001726,2]
[352766435,1739298666547,-643.30453065,0.0001726,2]
[352766436,1739298666558,-500.0,0.0001726,2]
[352766437,1739298666568,-500.0,0.0001726,2]
[352766438,1739298666578,-500.0,0.0001726,2]
[352766439,1739298666587,-1359.95,0.0001726,2]
[352766440,1739298666597,-500.0,0.0001726,2]
[352766441,1739298666607,-902.85,0.0001726,2]
[352766442,1739298666616,-500.0,0.0001726,2]
[352766443,1739298666628,-20960.46174376,0.00017272,2]
[352766444,1739298666638,-500.0,0.00017273,2]
[352766445,1739298666647,-179.33869203,0.00017308,2]
[352766446,1739298666657,-5000.0,0.00017335,2]
[352766447,1739298666667,-5000.0,0.00017335,2]
[352766448,1739298666676,-491.014014,0.00017335,2]
[352766449,1739298666686,-491.014014,0.00017335,2]
[352766450,1739298666696,-652.076007,0.00017335,2]
[352766451,1739298666707,-652.076007,0.00017335,2]
[352766452,1739298666716,-206.620372,0.00017335,2]
[352766453,1739298666726,-206.620372,0.00017335,2]
[352766454,1739298666736,-219.46893341,0.00017396,2]
[352766455,1739298666745,-469.902416,0.00017397,2]
[352766456,1739298666754,-549.183022,0.00017397,2]
[352766457,1739298666764,-561.42853119,0.00017397,2]
[352766458,1739298666773,-500.0,0.00017397,2]
[352766459,1739298666782,-500.0,0.00017397,2]
[352766460,1739298666791,-500.0,0.00017397,2]
[352766461,1739298666800,-500.0,0.00017397,2]
[352766462,1739298666811,-500.0,0.00017397,2]
[352766463,1739298666820,-500.0,0.00017397,2]
[352766464,1739298666830,-500.0,0.00017397,2]
[352766465,1739298666840,-500.0,0.00017397,2]
[352766466,1739298666849,-722.82,0.00017397,2]
[352766467,1739298666859,-788.18,0.00017397,2]
[352766468,1739298666869,-500.0,0.00017397,2]
[352766469,1739298666881,-500.0,0.00017397,2]
[352766470,1739298666891,-500.0,0.00017397,2]
[352766471,1739298666900,-779.81,0.00017397,2]
[352766472,1739298666910,-500.0,0.00017397,2]
[352766473,1739298666920,-500.0,0.00017397,2]
[352766474,1739298666930,-500.0,0.00017397,2]
[352766475,1739298666939,-500.0,0.00017397,2]
[352766476,1739298666950,-181.12981929,0.00017397,2]
[352766477,1739298666959,-500.0,0.00017397,2]
[352766478,1739298666968,-500.0,0.00017397,2]
[352766479,1739298666978,-500.0,0.00017397,2]
[352766480,1739298666988,-500.0,0.00017397,2]
[352766481,1739298666997,-500.0,0.00017397,2]
[352766482,1739298667006,-500.0,0.00017397,2]
[352766483,1739298667016,-553.98,0.00017397,2]
[352766484,1739298667026,-500.0,0.00017397,2]
[352766485,1739298667036,-2296.07,0.00017397,2]
[352766486,1739298667046,-500.0,0.00017397,2]
[352766487,1739298667056,-500.0,0.00017397,2]
[352766488,1739298667066,-500.0,0.00017397,2]